Workbook

Sheet Income statement
A2: Condensed Income Statement
A3: NOK million | B3: Q1 2015 | C3: Q2 2015 | D3: YTD Q2 2015 | E3: Q3 2015 | F3: YTD Q3 2015 | G3: Q4 2015 | H3: YTD Q4 2015 | I3: Q1 2016 | J3: Q2 2016 | K3: YTD Q2 2016 | L3: Q3 2016 | M3: YTD Q3 2016 | N3: Q4 2016 | O3: YTD Q4 2016 | P3: Q1 2017 | Q3: Q2 2017 | R3: YTD Q2 2017
A4: Operating revenues | B4: 7541 | C4: 7705 | D4: 15246 | E4: 8381 | F4: 23627 | G4: 9571 | H4: 33198 | I4: 8610 | J4: 9433 | K4: 18043 | L4: 9429 | M4: 27472 | N4: 10286 | O4: 37758 | P4: 9081 | Q4: 9771 | R4: 18852
A5: Operating expenses | B5: -6578 | C5: -6643 | D5: -13221 | E5: -7123 | F5: -20344 | G5: -8188 | H5: -28532 | I5: -7514 | J5: -8152 | K5: -15666 | L5: -7961 | M5: -23627 | N5: -8687 | O5: -32314 | P5: -7893 | Q5: -8446 | R5: -16339
A6: Depreciation, amortisation and write-downs | B6: -238 | C6: -273 | D6: -511 | E6: -265 | F6: -776 | G6: -281 | H6: -1057 | I6: -279 | J6: -285 | K6: -564 | L6: -290 | M6: -854 | N6: -292 | O6: -1146 | P6: -288 | Q6: -300 | R6: -588
A7: EBIT (adj.) | B7: =SUM(B4:B6) -> 725 | C7: 789 | D7: 1514 | E7: 993 | F7: 2507 | G7: 1102 | H7: 3609 | I7: 817 | J7: 996 | K7: 1813 | L7: 1178 | M7: 2991 | N7: 1307 | O7: 4298 | P7: 900 | Q7: 1025 | R7: 1925
A8: Other income and expenses | B8: -117 | C8: -55 | D8: -172 | E8: -96 | F8: -268 | G8: -234 | H8: -502 | I8: -30 | J8: -81 | K8: -111 | L8: -149 | M8: -260 | N8: -122 | O8: -382 | P8: -87 | Q8: -116 | R8: -203
A9: Operating profit | B9: =SUM(B7:B8) -> 608 | C9: 734 | D9: 1342 | E9: 897 | F9: 2239 | G9: 868 | H9: 3107 | I9: 787 | J9: 915 | K9: 1702 | L9: 1029 | M9: 2731 | N9: 1185 | O9: 3916 | P9: 813 | Q9: 909 | R9: 1722
A10: Profit from associates and joint ventures | B10: 193 | C10: 538 | D10: 731 | E10: 185 | F10: 916 | G10: 72 | H10: 988 | I10: 253 | J10: 123 | K10: 376 | L10: 141 | M10: 517 | N10: -29 | O10: 488 | P10: 173 | Q10: 115 | R10: 288
A11: Interest, net | B11: -63 | C11: -18 | D11: -81 | E11: -78 | F11: -159 | G11: -33 | H11: -192 | I11: -50 | J11: -47 | K11: -97 | L11: -40 | M11: -137 | N11: -40 | O11: -177 | P11: -37 | Q11: -39 | R11: -76
A12: Other financial items, net | B12: 12 | C12: 19 | D12: 31 | E12: 11 | F12: 42 | G12: 22 | H12: 64 | I12: 52 | J12: -51 | K12: 1 | L12: 26 | M12: 27 | N12: 38 | O12: 65 | P12: 34 | Q12: -18 | R12: 16
A13: Profit before taxes | B13: =SUM(B9:B12) -> 750 | C13: 1273 | D13: 2023 | E13: 1015 | F13: 3038 | G13: 929 | H13: 3967 | I13: 1042 | J13: 940 | K13: 1982 | L13: 1156 | M13: 3138 | N13: 1154 | O13: 4292 | P13: 983 | Q13: 967 | R13: 1950
A14: Taxes | B14: -155 | C14: -155 | D14: -310 | E14: -240 | F14: -550 | G14: -172 | H14: -722 | I14: -135 | J14: -200 | K14: -335 | L14: -235 | M14: -570 | N14: -237 | O14: -807 | P14: -185 | Q14: -185 | R14: -370
A15: Profit for the period for continued operations | B15: =SUM(B13:B14) -> 595 | C15: 1118 | D15: 1713 | E15: 775 | F15: 2488 | G15: 757 | H15: 3245 | I15: 907 | J15: 740 | K15: 1647 | L15: 921 | M15: 2568 | N15: 917 | O15: 3485 | P15: 798 | Q15: 782 | R15: 1580
A16: Gains/profit/loss discontinued operations | B16: 45 | C16: 7 | D16: 52 | E16: 54 | F16: 106 | G16: 0 | H16: 106 | I16: 209 | J16: 319 | K16: 528 | L16: 172 | M16: 700 | N16: 190 | O16: 890 | P16: 312 | Q16: 273 | R16: 585
A17: Profit/loss for the period | B17: =SUM(B15:B16) -> 640 | C17: 1125 | D17: 1765 | E17: 829 | F17: 2594 | G17: 757 | H17: 3351 | I17: 1116 | J17: 1059 | K17: 2175 | L17: 1093 | M17: 3268 | N17: 1107 | O17: 4375 | P17: 1110 | Q17: 1055 | R17: 2165
A18: Profit/loss attributable to non-controlling interests | B18: 11 | C18: 16 | D18: 27 | E18: 19 | F18: 46 | G18: 10 | H18: 56 | I18: 21 | J18: 42 | K18: 63 | L18: 24 | M18: 87 | N18: -5 | O18: 82 | P18: 15 | Q18: 25 | R18: 40
A19: Profit/loss attributable to owners of the parent | B19: =B17-B18 -> 629 | C19: 1109 | D19: 1738 | E19: 810 | F19: 2548 | G19: 747 | H19: 3295 | I19: 1095 | J19: 1017 | K19: 2112 | L19: 1069 | M19: 3181 | N19: 1112 | O19: 4293 | P19: 1095 | Q19: 1030 | R19: 2125
A22: Operating revenues
A23: NOK million | B23: Q1 2015 | C23: Q2 2015 | D23: YTD Q2 2015 | E23: Q3 2015 | F23: YTD Q3 2015 | G23: Q4 2015 | H23: YTD Q4 2015 | I23: Q1 2016 | J23: Q2 2016 | K23: YTD Q2 2016 | L23: Q3 2016 | M23: YTD Q3 2016 | N23: Q4 2016 | O23: YTD Q4 2016 | P23: Q1 2017 | Q23: Q2 2017 | R23: YTD Q2 2017
A24: Orkla Group | B24: =B31+B25+B34 -> 7541 | C24: =C31+C25+C34 -> 7705 | D24: 15246 | E24: 8381 | F24: 23627 | G24: 9571 | H24: 33198 | I24: 8610 | J24: 9433 | K24: 18043 | L24: 9429 | M24: 27472 | N24: 10286 | O24: 37758 | P24: 9081 | Q24: 9771 | R24: 18852
A25: Branded Consumer Goods | B25: =SUM(B26:B30) -> 7220 | C25: =SUM(C26:C30) -> 7404 | D25: 14624 | E25: 8064 | F25: 22688 | G25: 9314 | H25: 32002 | I25: 8362 | J25: 9147 | K25: 17509 | L25: 9179 | M25: 26688 | N25: 9734 | O25: 36422 | P25: 8834 | Q25: 9505 | R25: 18339
A26: Orkla Foods | B26: 3045 | C26: 3122 | D26: 6167 | E26: 3261 | F26: 9428 | G26: 3822 | H26: 13250 | I26: 3418 | J26: 3967 | K26: 7385 | L26: 3905 | M26: 11290 | N26: 4186 | O26: 15476 | P26: 3758 | Q26: 3977 | R26: 7735
A27: Orkla Confectionery & Snacks | B27: 1199 | C27: 1344 | D27: 2543 | E27: 1452 | F27: 3995 | G27: 1818 | H27: 5813 | I27: 1457 | J27: 1476 | K27: 2933 | L27: 1501 | M27: 4434 | N27: 1796 | O27: 6230 | P27: 1444 | Q27: 1527 | R27: 2971
A28: Orkla Care | B28: 1327 | C28: 1157 | D28: 2484 | E28: 1410 | F28: 3894 | G28: 1640 | H28: 5534 | I28: 1655 | J28: 1629 | K28: 3284 | L28: 1726 | M28: 5010 | N28: 1730 | O28: 6740 | P28: 1858 | Q28: 1813 | R28: 3671
A29: Orkla Food Ingredients | B29: 1680 | C29: 1814 | D29: 3494 | E29: 1989 | F29: 5483 | G29: 2115 | H29: 7598 | I29: 1873 | J29: 2121 | K29: 3994 | L29: 2095 | M29: 6089 | N29: 2072 | O29: 8161 | P29: 1813 | Q29: 2234 | R29: 4047
A30: Eliminations Branded Consumer Goods | B30: -31 | C30: -33 | D30: -64 | E30: -48 | F30: -112 | G30: -81 | H30: -193 | I30: -41 | J30: -46 | K30: -87 | L30: -48 | M30: -135 | N30: -50 | O30: -185 | P30: -39 | Q30: -46 | R30: -85
A31: Orkla Investments | B31: =SUM(B32:B33) -> 315 | C31: =SUM(C32:C33) -> 286 | D31: 601 | E31: 313 | F31: 914 | G31: 252 | H31: 1166 | I31: 245 | J31: 274 | K31: 519 | L31: 240 | M31: 759 | N31: 543 | O31: 1302 | P31: 236 | Q31: 257 | R31: 493
A32: Hydro Power | B32: 183 | C32: 159 | D32: 342 | E32: 156 | F32: 498 | G32: 192 | H32: 690 | I32: 173 | J32: 186 | K32: 359 | L32: 196 | M32: 555 | N32: 166 | O32: 721 | P32: 182 | Q32: 219 | R32: 401
A33: Financial Investments | B33: 132 | C33: 127 | D33: 259 | E33: 157 | F33: 416 | G33: 60 | H33: 476 | I33: 72 | J33: 88 | K33: 160 | L33: 44 | M33: 204 | N33: 377 | O33: 581 | P33: 54 | Q33: 38 | R33: 92
A34: HQ/Other business/Eliminations | B34: 6 | C34: 15 | D34: 21 | E34: 4 | F34: 25 | G34: 5 | H34: 30 | I34: 3 | J34: 12 | K34: 15 | L34: 10 | M34: 25 | N34: 9 | O34: 34 | P34: 11 | Q34: 9 | R34: 20
A37: Operating profit - EBIT (adj.)
A38: NOK million | B38: Q1 2015 | C38: Q2 2015 | D38: YTD Q2 2015 | E38: Q3 2015 | F38: YTD Q3 2015 | G38: Q4 2015 | H38: YTD Q4 2015 | I38: Q1 2016 | J38: Q2 2016 | K38: YTD Q2 2016 | L38: Q3 2016 | M38: YTD Q3 2016 | N38: Q4 2016 | O38: YTD Q4 2016 | P38: Q1 2017 | Q38: Q2 2017 | R38: YTD Q2 2017
A39: Orkla Group | B39: =B40+B45+B48 -> 725 | C39: =C40+C45+C48 -> 789 | D39: 1514 | E39: 993 | F39: 2507 | G39: 1102 | H39: 3609 | I39: 817 | J39: 996 | K39: 1813 | L39: 1178 | M39: 2991 | N39: 1307 | O39: 4298 | P39: 900 | Q39: 1025 | R39: 1925
A40: Branded Consumer Goods | B40: =SUM(B41:B44) -> 769 | C40: =SUM(C41:C44) -> 820 | D40: 1589 | E40: 1055 | F40: 2644 | G40: 1195 | H40: 3839 | I40: 860 | J40: 982 | K40: 1842 | L40: 1209 | M40: 3051 | N40: 1249 | O40: 4300 | P40: 921 | Q40: 1016 | R40: 1937
A41: Orkla Foods | B41: 322 | C41: 389 | D41: 711 | E41: 429 | F41: 1140 | G41: 561 | H41: 1701 | I41: 377 | J41: 463 | K41: 840 | L41: 512 | M41: 1352 | N41: 616 | O41: 1968 | P41: 392 | Q41: 434 | R41: 826
A42: Orkla Confectionery & Snacks | B42: 159 | C42: 132 | D42: 291 | E42: 238 | F42: 529 | G42: 314 | H42: 843 | I42: 177 | J42: 159 | K42: 336 | L42: 260 | M42: 596 | N42: 341 | O42: 937 | P42: 201 | Q42: 186 | R42: 387
A43: Orkla Care | B43: 230 | C43: 178 | D43: 408 | E43: 269 | F43: 677 | G43: 204 | H43: 881 | I43: 247 | J43: 216 | K43: 463 | L43: 307 | M43: 770 | N43: 186 | O43: 956 | P43: 275 | Q43: 245 | R43: 520
A44: Orkla Food Ingredients | B44: 58 | C44: 121 | D44: 179 | E44: 119 | F44: 298 | G44: 116 | H44: 414 | I44: 59 | J44: 144 | K44: 203 | L44: 130 | M44: 333 | N44: 106 | O44: 439 | P44: 53 | Q44: 151 | R44: 204
A45: Orkla Investments | B45: =SUM(B46:B47) -> 59 | C45: =SUM(C46:C47) -> 84 | D45: 143 | E45: 36 | F45: 179 | G45: 32 | H45: 211 | I45: 34 | J45: 86 | K45: 120 | L45: 57 | M45: 177 | N45: 146 | O45: 323 | P45: 61 | Q45: 74 | R45: 135
A46: Hydro Power | B46: 56 | C46: 27 | D46: 83 | E46: 22 | F46: 105 | G46: 49 | H46: 154 | I46: 44 | J46: 53 | K46: 97 | L46: 64 | M46: 161 | N46: 31 | O46: 192 | P46: 54 | Q46: 79 | R46: 133
A47: Financial Investments | B47: 3 | C47: 57 | D47: 60 | E47: 14 | F47: 74 | G47: -17 | H47: 57 | I47: -10 | J47: 33 | K47: 23 | L47: -7 | M47: 16 | N47: 115 | O47: 131 | P47: 7 | Q47: -5 | R47: 2
A48: HQ/Other business | B48: -103 | C48: -115 | D48: -218 | E48: -98 | F48: -316 | G48: -125 | H48: -441 | I48: -77 | J48: -72 | K48: -149 | L48: -88 | M48: -237 | N48: -88 | O48: -325 | P48: -82 | Q48: -65 | R48: -147

Sheet Cash flow
B3: Cash Flow Statement Orkla Group
C5: 1.1-30.6 | D5: 1.1-30.6 | E5: 1.4-30.6 | F5: 1.4-30.6
B6: Amounts in NOK million | C6: 2017 | D6: 2016 | E6: 2017 | F6: 2016
B8: Operating profit | C8: 1717 | D8: 1678 | E8: 911 | F8: 882
B9: Amortisation, depreciation and write-downs | C9: 625 | D9: 533 | E9: 298 | F9: 280
B10: Change in net working capital | C10: -298 | D10: -564 | E10: -135 | F10: -119
B11: Cash flow from operating act. bef. net replacement exp. | C11: =SUM(C8:C10) -> 2044 | D11: 1647 | E11: 1074 | F11: =SUM(F8:F10) -> 1043
B12: Net replacement expenditures | C12: -484 | D12: -760 | E12: -244 | F12: -370
B13: Cash flow from operations¹ | C13: =SUM(C11:C12) -> 1560 | D13: 887 | E13: 830 | F13: =SUM(F11:F12) -> 673
B14: Cash flow from operations, Financial Investments | C14: -84 | D14: -97 | E14: -78 | F14: -70
B15: Financial items paid | C15: -104 | D15: -143 | E15: -16 | F15: -58
B16: Taxes paid | C16: -365 | D16: -307 | E16: -142 | F16: -175
B17: Dividends received | C17: 1612 | D17: 128 | E17: 1503 | F17: 2
B18: Other payments | C18: 15 | D18: 12 | E18: 21 | F18: 31
B19: Cash flow before capital transactions | C19: =SUM(C13:C18) -> 2634 | D19: 480 | E19: 2118 | F19: =SUM(F13:F18) -> 403
B20: Dividends paid | C20: -2679 | D20: -2581 | E20: -2664 | F20: -2566
B21: Net sale/purchase of Orkla shares | C21: -75 | D21: -91 | E21: 24 | F21: 16
B22: Cash flow before expansion | C22: =SUM(C19:C21) -> -120 | D22: -2192 | E22: -522 | F22: =SUM(F19:F21) -> -2147
B23: Expansion investments | C23: -114 | D23: -97 | E23: -60 | F23: -57
B24: Sold companies | C24: 147 | D24: 399 | E24: 41 | F24: 164
B25: Acquired companies | C25: -731 | D25: -1951 | E25: -531 | F25: -212
B26: Net purchases/sales shares and financial assets | C26: 46 | D26: 1045 | E26: -42 | F26: 120
B27: Net cash flow | C27: =SUM(C22:C26) -> -772 | D27: -2796 | E27: -1114 | F27: =SUM(F22:F26) -> -2132
B28: Currency translations net interest-bearing liabilities | C28: -464 | D28: 421 | E28: -362 | F28: 220
B29: Change in net interest-bearing liabilities | C29: =-C27-C28 -> 1236 | D29: 2375 | E29: 1476 | F29: =-F27-F28 -> 1912
B30: Net interest-bearing liabilities | C30: 9292 | D30: 10180
B32: ¹ Excluding Financial Investments

Sheet Balance sheet
B3: Group Balance Sheet
C4: 2017-06-30 | D4: 2016-12-31
B5: Amounts in NOK million | C5: 2017 | D5: 2016
B7: Assets:
B8: Intangible assets | C8: 19548 | D8: 18343
B9: Property, plant and equipment | C9: 11518 | D9: 11038
B10: Investments in associates and joint ventures and other financial assets | C10: 4438 | D10: 13148
B11: Non-current assets | C11: =SUM(C8:C10) -> 35504 | D11: =SUM(D8:D10) -> 42529
B12: Assets held for sale | C12: 8106 | D12: 0
B13: Inventories | C13: 5714 | D13: 5195
B14: Inventory of development property | C14: 73 | D14: 70
B15: Trade receivables | C15: 6048 | D15: 5597
B16: Other receivables | C16: 845 | D16: 902
B17: Shares and financial assets | C17: 19 | D17: 107
B18: Cash and cash equivalents | C18: 1029 | D18: 1204
B19: Current assets | C19: =SUM(C12:C18) -> 21834 | D19: =SUM(D12:D18) -> 13075
B20: Total assets | C20: =C11+C19 -> 57338 | D20: =D11+D19 -> 55604
B21: Equity and debt:
B22: Paid-in equity | C22: 1993 | D22: 1994
B23: Earned equity | C23: 31610 | D23: 31480
B24: Non-controlling interests | C24: 416 | D24: 402
B25: Equity | C25: =SUM(C22:C24) -> 34019 | D25: =SUM(D22:D24) -> 33876
B26: Provisions and other non-current liabilities | C26: 4279 | D26: 4146
B27: Non-current interest-bearing liabilities | C27: 9590 | D27: 7172
B28: Current interest-bearing liabilities | C28: 1051 | D28: 2496
B29: Trade payables | C29: 4537 | D29: 4329
B30: Other current liabilities | C30: 3862 | D30: 3585
B31: Equity and liabilities | C31: =SUM(C25:C30) -> 57338 | D31: =SUM(D25:D30) -> 55604
B33: Equity ratio (%): | C33: =C25/C31 -> 0.5933063588 | D33: =D25/D31 -> 0.6092367456
